[Event "Late-Titled-Tuesday-Blitz-April-02-2024"]
[Site "Chess.com"]
[Date "2024.04.02"]
[Round "9"]
[White "Rodalquilar"]
[Black "albi1999"]
[Result "1/2-1/2"]
[WhiteElo "2741"]
[BlackElo "2615"]
[TimeControl "180+1"]
[EndTime "15:45:50 PDT"]
[Termination "Game drawn by 50-move rule"]

1. d4 {[%clk 0:03:00.9]} 1... Nf6 {[%clk 0:02:51.7]} 2. Nf3 {[%clk 0:03:00.7]}
2... g6 {[%clk 0:02:51.3]} 3. Bf4 {[%clk 0:03:01]} 3... Bg7 {[%clk 0:02:51.1]}
4. e3 {[%clk 0:03:01.7]} 4... O-O {[%clk 0:02:51.7]} 5. Be2 {[%clk 0:03:02.2]}
5... d6 {[%clk 0:02:52]} 6. O-O {[%clk 0:03:02.7]} 6... c5 {[%clk 0:02:50.9]} 7.
c3 {[%clk 0:03:02.8]} 7... cxd4 {[%clk 0:02:47]} 8. exd4 {[%clk 0:03:02.8]} 8...
Nc6 {[%clk 0:02:46.8]} 9. h3 {[%clk 0:03:02.6]} 9... Nh5 {[%clk 0:02:27.9]} 10.
Bh2 {[%clk 0:03:02.5]} 10... e5 {[%clk 0:02:28.1]} 11. dxe5 {[%clk 0:03:01.3]}
11... dxe5 {[%clk 0:02:29]} 12. Nbd2 {[%clk 0:02:58.8]} 12... Qe7 {[%clk
0:02:23.5]} 13. Re1 {[%clk 0:02:58.4]} 13... e4 {[%clk 0:01:59.2]} 14. Bf1
{[%clk 0:02:58.2]} 14... f5 {[%clk 0:01:57.5]} 15. Nc4 {[%clk 0:02:58.2]} 15...
Rd8 {[%clk 0:01:54.4]} 16. Qc1 {[%clk 0:02:37.3]} 16... Be6 {[%clk 0:01:49.8]}
17. Nfe5 {[%clk 0:02:14]} 17... Nxe5 {[%clk 0:01:40.1]} 18. Bxe5 {[%clk
0:02:12.9]} 18... Bxe5 {[%clk 0:01:37.4]} 19. Nxe5 {[%clk 0:02:13.8]} 19... Qc7
{[%clk 0:01:32.6]} 20. Nf3 {[%clk 0:02:06.6]} 20... exf3 {[%clk 0:01:13.7]} 21.
Rxe6 {[%clk 0:02:06.4]} 21... fxg2 {[%clk 0:01:13]} 22. Bxg2 {[%clk 0:02:06.5]}
22... Nf4 {[%clk 0:01:11.8]} 23. Re3 {[%clk 0:02:06.2]} 23... Nxg2 {[%clk
0:01:10.7]} 24. Kxg2 {[%clk 0:02:06.4]} 24... Qc6+ {[%clk 0:01:10.4]} 25. Kg1
{[%clk 0:02:06.8]} 25... Rd7 {[%clk 0:01:07.6]} 26. Qe1 {[%clk 0:02:04.8]} 26...
Rad8 {[%clk 0:01:03]} 27. Re8+ {[%clk 0:02:04.8]} 27... Kf7 {[%clk 0:01:00.6]}
28. Rxd8 {[%clk 0:02:04.3]} 28... Rxd8 {[%clk 0:01:01.5]} 29. Qe3 {[%clk
0:02:02.2]} 29... Qb6 {[%clk 0:00:51]} 30. Qh6 {[%clk 0:01:52.7]} 30... Kg8
{[%clk 0:00:49.3]} 31. Qg5 {[%clk 0:01:52.9]} 31... Re8 {[%clk 0:00:39]} 32. Qd2
{[%clk 0:01:51]} 32... Qf6 {[%clk 0:00:33.9]} 33. Rd1 {[%clk 0:01:49.4]} 33...
Re7 {[%clk 0:00:32.5]} 34. Qd5+ {[%clk 0:01:43.7]} 34... Kg7 {[%clk 0:00:32.6]}
35. Kf1 {[%clk 0:01:29.3]} 35... f4 {[%clk 0:00:32.5]} 36. Rd3 {[%clk
0:01:11.6]} 36... a6 {[%clk 0:00:32.1]} 37. Qf3 {[%clk 0:01:07.8]} 37... Qf5
{[%clk 0:00:30.5]} 38. Kg2 {[%clk 0:00:44.7]} 38... h5 {[%clk 0:00:30.2]} 39.
Rd5 {[%clk 0:00:40.9]} 39... Qf6 {[%clk 0:00:26]} 40. Qd3 {[%clk 0:00:40.4]}
40... Kh6 {[%clk 0:00:24.6]} 41. Qd4 {[%clk 0:00:32]} 41... f3+ {[%clk
0:00:20.5]} 42. Kg3 {[%clk 0:00:30.6]} 42... Qxd4 {[%clk 0:00:08.5]} 43. Rxd4
{[%clk 0:00:30.8]} 43... Re2 {[%clk 0:00:06.1]} 44. Rb4 {[%clk 0:00:31]} 44...
b5 {[%clk 0:00:06.6]} 45. Kxf3 {[%clk 0:00:31.4]} 45... Rc2 {[%clk 0:00:07.2]}
46. h4 {[%clk 0:00:31.5]} 46... g5 {[%clk 0:00:07.1]} 47. hxg5+ {[%clk
0:00:29.9]} 47... Kxg5 {[%clk 0:00:08]} 48. Kg3 {[%clk 0:00:30.5]} 48... Kf5
{[%clk 0:00:07.4]} 49. a3 {[%clk 0:00:28.7]} 49... Kg5 {[%clk 0:00:06.8]} 50. f3
{[%clk 0:00:25.2]} 50... Rd2 {[%clk 0:00:04.2]} 51. Kh3 {[%clk 0:00:11.9]} 51...
Rf2 {[%clk 0:00:02.3]} 52. Kg3 {[%clk 0:00:11.5]} 52... Rd2 {[%clk 0:00:02.9]}
53. c4 {[%clk 0:00:09.4]} 53... bxc4 {[%clk 0:00:03]} 54. a4 {[%clk 0:00:10]}
54... Rc2 {[%clk 0:00:02.9]} 55. a5 {[%clk 0:00:10]} 55... c3 {[%clk 0:00:03.1]}
56. bxc3 {[%clk 0:00:07.7]} 56... Rxc3 {[%clk 0:00:04]} 57. Rb6 {[%clk
0:00:08.6]} 57... h4+ {[%clk 0:00:04]} 58. Kg2 {[%clk 0:00:08.9]} 58... Rc2+
{[%clk 0:00:03.8]} 59. Kh3 {[%clk 0:00:09.2]} 59... Rf2 {[%clk 0:00:03.8]} 60.
Rxa6 {[%clk 0:00:06.1]} 60... Rxf3+ {[%clk 0:00:04.3]} 61. Kg2 {[%clk
0:00:06.8]} 61... Ra3 {[%clk 0:00:05.2]} 62. Ra8 {[%clk 0:00:07.1]} 62... h3+
{[%clk 0:00:04.7]} 63. Kh2 {[%clk 0:00:07.1]} 63... Kg4 {[%clk 0:00:05.6]} 64.
a6 {[%clk 0:00:06.9]} 64... Ra2+ {[%clk 0:00:05.4]} 65. Kh1 {[%clk 0:00:07.5]}
65... Kg3 {[%clk 0:00:05.9]} 66. Rg8+ {[%clk 0:00:07.5]} 66... Kf3 {[%clk
0:00:06.1]} 67. Rg6 {[%clk 0:00:05.7]} 67... h2 {[%clk 0:00:05.3]} 68. Rb6
{[%clk 0:00:04.3]} 68... Ke4 {[%clk 0:00:05.3]} 69. Rg6 {[%clk 0:00:03.6]} 69...
Kd5 {[%clk 0:00:05.5]} 70. Rg5+ {[%clk 0:00:03.3]} 70... Kc6 {[%clk 0:00:05.6]}
71. Rg6+ {[%clk 0:00:03.9]} 71... Kc7 {[%clk 0:00:06.1]} 72. Rg7+ {[%clk
0:00:02.8]} 72... Kb6 {[%clk 0:00:06.2]} 73. Rg6+ {[%clk 0:00:03.5]} 73... Ka7
{[%clk 0:00:06.2]} 74. Rg8 {[%clk 0:00:04.1]} 74... Rxa6 {[%clk 0:00:05.6]} 75.
Kxh2 {[%clk 0:00:04.2]} 75... Rc6 {[%clk 0:00:06.2]} 76. Kh3 {[%clk 0:00:04.7]}
76... Kb6 {[%clk 0:00:07.1]} 77. Rg5 {[%clk 0:00:04.8]} 77... Rc5 {[%clk
0:00:07.5]} 78. Rg1 {[%clk 0:00:05.1]} 78... Kb5 {[%clk 0:00:07.9]} 79. Rd1
{[%clk 0:00:05.3]} 79... Rc4 {[%clk 0:00:08.2]} 80. Kg3 {[%clk 0:00:05.8]} 80...
Kc5 {[%clk 0:00:08]} 81. Kf3 {[%clk 0:00:06.3]} 81... Rd4 {[%clk 0:00:08.5]} 82.
Rc1+ {[%clk 0:00:06.8]} 82... Rc4 {[%clk 0:00:09]} 83. Rh1 {[%clk 0:00:06.8]}
83... Rd4 {[%clk 0:00:09.3]} 84. Ke3 {[%clk 0:00:07.4]} 84... Rd5 {[%clk
0:00:10.2]} 85. Rh4 {[%clk 0:00:06.6]} 85... Re5+ {[%clk 0:00:10.6]} 86. Kd3
{[%clk 0:00:07.2]} 86... Rd5+ {[%clk 0:00:11]} 87. Kc3 {[%clk 0:00:07.8]} 87...
Kd6 {[%clk 0:00:11.6]} 88. Rh6+ {[%clk 0:00:07.2]} 88... Kc5 {[%clk 0:00:11.8]}
89. Rg6 {[%clk 0:00:07.2]} 89... Re5 {[%clk 0:00:12.1]} 90. Rg4 {[%clk
0:00:07.4]} 90... Rf5 {[%clk 0:00:12.2]} 91. Ra4 {[%clk 0:00:06.8]} 91... Rf3+
{[%clk 0:00:11.9]} 92. Kd2 {[%clk 0:00:07.3]} 92... Rg3 {[%clk 0:00:12.2]} 93.
Rf4 {[%clk 0:00:06.8]} 93... Rh3 {[%clk 0:00:12.1]} 94. Ke2 {[%clk 0:00:07.2]}
94... Kd5 {[%clk 0:00:12.4]} 95. Rg4 {[%clk 0:00:07.6]} 95... Ke5 {[%clk
0:00:12.8]} 96. Rb4 {[%clk 0:00:07.8]} 96... Kf5 {[%clk 0:00:13]} 97. Kf2 {[%clk
0:00:08.4]} 97... Ke5 {[%clk 0:00:13.3]} 98. Kg2 {[%clk 0:00:08.9]} 98... Ra3
{[%clk 0:00:13.4]} 99. Rb5+ {[%clk 0:00:09.3]} 99... Kd4 {[%clk 0:00:13.8]} 100.
Rb8 {[%clk 0:00:10.2]} 100... Ke5 {[%clk 0:00:14.1]} 101. Kf2 {[%clk 0:00:10.6]}
101... Kf4 {[%clk 0:00:14.4]} 102. Ke2 {[%clk 0:00:11.2]} 102... Ke4 {[%clk
0:00:14.9]} 103. Kd2 {[%clk 0:00:11.6]} 103... Kd4 {[%clk 0:00:15.3]} 104. Rd8+
{[%clk 0:00:12]} 104... Ke4 {[%clk 0:00:15.2]} 105. Rh8 {[%clk 0:00:12.9]}
105... Kf4 {[%clk 0:00:15.2]} 106. Rh5 {[%clk 0:00:13.1]} 106... Kg4 {[%clk
0:00:15.4]} 107. Rd5 {[%clk 0:00:12.8]} 107... Rh3 {[%clk 0:00:15.8]} 108. Rd4+
{[%clk 0:00:13]} 108... Kf5 {[%clk 0:00:16.3]} 109. Ra4 {[%clk 0:00:13.5]}
109... Ke5 {[%clk 0:00:16.3]} 110. Kc2 {[%clk 0:00:14]} 110... Kd5 {[%clk
0:00:16.7]} 111. Rg4 {[%clk 0:00:14.2]} 111... Ke5 {[%clk 0:00:16.9]} 112. Rg1
{[%clk 0:00:14.4]} 112... Kd4 {[%clk 0:00:17.1]} 113. Rd1+ {[%clk 0:00:14.6]}
113... Kc4 {[%clk 0:00:17.5]} 114. Rd8 {[%clk 0:00:15.5]} 114... Rh2+ {[%clk
0:00:17.5]} 115. Kd1 {[%clk 0:00:16]} 115... Kc3 {[%clk 0:00:18.2]} 116. Ke1
{[%clk 0:00:15.8]} 116... Rg2 {[%clk 0:00:17.6]} 117. Rd7 {[%clk 0:00:15.7]}
117... Ra2 {[%clk 0:00:17.1]} 118. Rd6 {[%clk 0:00:16]} 118... Kc4 {[%clk
0:00:17.5]} 119. Rd1 {[%clk 0:00:15.9]} 119... Kc3 {[%clk 0:00:17.4]} 120. Rd5
{[%clk 0:00:15.5]} 120... Kc4 {[%clk 0:00:17.9]} 121. Rg5 {[%clk 0:00:15.5]}
121... Kd4 {[%clk 0:00:18.4]} 122. Rg3 {[%clk 0:00:15.8]} 122... Ke4 {[%clk
0:00:18.7]} 123. Rb3 {[%clk 0:00:16]} 123... Kf4 {[%clk 0:00:18.9]} 124. Kd1
{[%clk 0:00:16.4]} 124... Ke4 {[%clk 0:00:19.3]} 125. Kc1 {[%clk 0:00:16.9]}
1/2-1/2

[Event "Late-Titled-Tuesday-Blitz-April-02-2024"]
[Site "Chess.com"]
[Date "2024.04.02"]
[Round "10"]
[White "GMKrikor"]
[Black "Bryanl106"]
[Result "1-0"]
[WhiteElo "2876"]
[BlackElo "2684"]
[TimeControl "180+1"]
[EndTime "15:48:24 PDT"]
[Termination "GMKrikor won by resignation"]

1. Nf3 {[%clk 0:03:00.9]} 1... Nf6 {[%clk 0:02:58.5]} 2. c4 {[%clk 0:02:58.4]}
2... g6 {[%clk 0:02:58.2]} 3. Nc3 {[%clk 0:02:58.2]} 3... Bg7 {[%clk 0:02:56.4]}
4. e4 {[%clk 0:02:58.2]} 4... d6 {[%clk 0:02:56.7]} 5. d4 {[%clk 0:02:58.7]}
5... O-O {[%clk 0:02:57.1]} 6. h3 {[%clk 0:02:59.4]} 6... c5 {[%clk 0:02:57.1]}
7. d5 {[%clk 0:02:59.3]} 7... e6 {[%clk 0:02:57.1]} 8. Be2 {[%clk 0:02:59.1]}
8... exd5 {[%clk 0:02:56.3]} 9. exd5 {[%clk 0:03:00]} 9... Re8 {[%clk
0:02:56.3]} 10. O-O {[%clk 0:02:59.6]} 10... Bf5 {[%clk 0:02:56.4]} 11. Bd3
{[%clk 0:02:51.5]} 11... Bxd3 {[%clk 0:02:55.6]} 12. Qxd3 {[%clk 0:02:51.1]}
12... Nfd7 {[%clk 0:02:56.1]} 13. Bf4 {[%clk 0:02:33.3]} 13... Ne5 {[%clk
0:02:55.2]} 14. Nxe5 {[%clk 0:02:31.2]} 14... Bxe5 {[%clk 0:02:56.1]} 15. Bxe5
{[%clk 0:02:30.9]} 15... Rxe5 {[%clk 0:02:57]} 16. f4 {[%clk 0:02:27.2]} 16...
Re8 {[%clk 0:02:53.2]} 17. f5 {[%clk 0:02:27.8]} 17... Nd7 {[%clk 0:02:52.7]}
18. fxg6 {[%clk 0:02:01.7]} 18... hxg6 {[%clk 0:02:49.7]} 19. Ne4 {[%clk
0:02:02.1]} 19... Ne5 {[%clk 0:02:49.7]} 20. Qg3 {[%clk 0:01:57.4]} 20... f5
{[%clk 0:02:48.8]} 21. Rxf5 {[%clk 0:01:56.2]} 21... Qd7 {[%clk 0:02:41.2]} 22.
Nf6+ {[%clk 0:01:55.9]} 1-0

[Event "Late-Titled-Tuesday-Blitz-April-02-2024"]
[Site "Chess.com"]
[Date "2024.04.02"]
[Round "10"]
[White "Hikaru"]
[Black "jcibarra"]
[Result "1-0"]
[WhiteElo "3254"]
[BlackElo "2972"]
[TimeControl "180+1"]
[EndTime "15:48:37 PDT"]
[Termination "Hikaru won by resignation"]

1. d4 {[%clk 0:03:00.9]} 1... Nf6 {[%clk 0:02:53.1]} 2. Bg5 {[%clk 0:02:59.7]}
2... d5 {[%clk 0:02:53.1]} 3. e3 {[%clk 0:02:57.1]} 3... c5 {[%clk 0:02:52.9]}
4. Bxf6 {[%clk 0:02:55.7]} 4... gxf6 {[%clk 0:02:52.7]} 5. dxc5 {[%clk
0:02:55.9]} 5... e6 {[%clk 0:02:53]} 6. a3 {[%clk 0:02:55.1]} 6... Bxc5 {[%clk
0:02:52.1]} 7. b4 {[%clk 0:02:51.4]} 7... Be7 {[%clk 0:02:50.9]} 8. Nd2 {[%clk
0:02:51.6]} 8... a5 {[%clk 0:02:47.2]} 9. c3 {[%clk 0:02:51.9]} 9... f5 {[%clk
0:02:43.4]} 10. Ne2 {[%clk 0:02:45.9]} 10... Bf6 {[%clk 0:02:41.2]} 11. Rc1
{[%clk 0:02:42.2]} 11... axb4 {[%clk 0:02:39.9]} 12. axb4 {[%clk 0:02:43]} 12...
Nc6 {[%clk 0:02:39.6]} 13. Nd4 {[%clk 0:02:42.1]} 13... O-O {[%clk 0:02:37.7]}
14. Bd3 {[%clk 0:02:41.5]} 14... Kh8 {[%clk 0:02:33.8]} 15. O-O {[%clk
0:02:38.7]} 15... Rg8 {[%clk 0:02:31.4]} 16. f4 {[%clk 0:02:36.8]} 16... Bd7
{[%clk 0:02:23.3]} 17. N2f3 {[%clk 0:02:36.9]} 17... Qc7 {[%clk 0:02:11.4]} 18.
Qd2 {[%clk 0:02:31.1]} 18... Ra3 {[%clk 0:02:09.5]} 19. Nb5 {[%clk 0:02:30.2]}
1-0

[Event "Late-Titled-Tuesday-Blitz-April-02-2024"]
[Site "Chess.com"]
[Date "2024.04.02"]
[Round "10"]
[White "Crazy_girl99"]
[Black "Kavyev_Ruslan"]
[Result "0-1"]
[WhiteElo "2599"]
[BlackElo "2417"]
[TimeControl "180+1"]
[EndTime "15:49:08 PDT"]
[Termination "Kavyev_Ruslan won by resignation"]

1. e4 {[%clk 0:02:57.5]} 1... c5 {[%clk 0:02:59.8]} 2. Nf3 {[%clk 0:02:54.3]}
2... Nc6 {[%clk 0:03:00.1]} 3. Bb5 {[%clk 0:02:54.1]} 3... Nd4 {[%clk 0:03:01]}
4. Bd3 {[%clk 0:02:48.5]} 4... g6 {[%clk 0:02:56.3]} 5. c3 {[%clk 0:02:48.7]}
5... Nc6 {[%clk 0:02:55.9]} 6. O-O {[%clk 0:02:48.6]} 6... Bg7 {[%clk
0:02:55.9]} 7. Bc2 {[%clk 0:02:49.1]} 7... d5 {[%clk 0:02:52.8]} 8. exd5 {[%clk
0:02:35.2]} 8... Qxd5 {[%clk 0:02:52.4]} 9. d4 {[%clk 0:02:35]} 9... cxd4 {[%clk
0:02:51.5]} 10. Bb3 {[%clk 0:02:33.4]} 10... Qd6 {[%clk 0:02:44.6]} 11. Ng5
{[%clk 0:02:25.9]} 11... e6 {[%clk 0:02:37]} 12. cxd4 {[%clk 0:02:25.8]} 12...
Qxd4 {[%clk 0:02:32.1]} 13. Qf3 {[%clk 0:02:20]} 13... Qf6 {[%clk 0:02:30.6]}
14. Qg3 {[%clk 0:02:10]} 14... Nge7 {[%clk 0:02:25.5]} 15. Ne4 {[%clk
0:02:09.5]} 15... Qe5 {[%clk 0:02:16.1]} 16. Nd6+ {[%clk 0:02:08.9]} 16... Kf8
{[%clk 0:02:15.4]} 17. Bf4 {[%clk 0:02:08.6]} 17... Qxb2 {[%clk 0:02:15.4]} 18.
Nd2 {[%clk 0:02:04]} 18... Qxa1 {[%clk 0:02:14.6]} 19. Rxa1 {[%clk 0:02:03.3]}
19... Bxa1 {[%clk 0:02:15.5]} 20. Bh6+ {[%clk 0:01:58.7]} 20... Bg7 {[%clk
0:02:14.4]} 21. Qe5 {[%clk 0:01:57.8]} 21... Nxe5 {[%clk 0:02:08.9]} 0-1

[Event "Late-Titled-Tuesday-Blitz-April-02-2024"]
[Site "Chess.com"]
[Date "2024.04.02"]
[Round "10"]
[White "Ar4uha"]
[Black "Onthequiet"]
[Result "1-0"]
[WhiteElo "2590"]
[BlackElo "2438"]
[TimeControl "180+1"]
[EndTime "15:49:53 PDT"]
[Termination "Ar4uha won by resignation"]

1. e4 {[%clk 0:03:00.9]} 1... c6 {[%clk 0:03:00.2]} 2. d4 {[%clk 0:03:00.8]}
2... d5 {[%clk 0:03:01.1]} 3. exd5 {[%clk 0:03:01.1]} 3... cxd5 {[%clk
0:03:01.4]} 4. Bd3 {[%clk 0:03:01.7]} 4... Nf6 {[%clk 0:03:00.8]} 5. c3 {[%clk
0:03:01.7]} 5... Nc6 {[%clk 0:03:00.5]} 6. h3 {[%clk 0:03:01.8]} 6... g6 {[%clk
0:03:00.3]} 7. Bf4 {[%clk 0:03:01.7]} 7... Bf5 {[%clk 0:02:59.9]} 8. Nf3 {[%clk
0:03:00.2]} 8... Bg7 {[%clk 0:02:58.9]} 9. O-O {[%clk 0:03:00.3]} 9... O-O
{[%clk 0:02:58.4]} 10. Ne5 {[%clk 0:03:00]} 10... Bxd3 {[%clk 0:02:56]} 11. Qxd3
{[%clk 0:03:00.2]} 11... Nxe5 {[%clk 0:02:55.4]} 12. Bxe5 {[%clk 0:03:00.4]}
12... e6 {[%clk 0:02:54.9]} 13. Nd2 {[%clk 0:03:00.3]} 13... Rc8 {[%clk
0:02:52.1]} 14. Rfe1 {[%clk 0:03:00.3]} 14... Qd7 {[%clk 0:02:48.7]} 15. h4
{[%clk 0:02:56.6]} 15... b5 {[%clk 0:02:37.4]} 16. b4 {[%clk 0:02:50.9]} 16...
Qc6 {[%clk 0:02:25.4]} 17. Rac1 {[%clk 0:02:49.9]} 17... Qa6 {[%clk 0:02:20.4]}
18. Rc2 {[%clk 0:02:42.1]} 18... Nd7 {[%clk 0:02:10.5]} 19. Bxg7 {[%clk
0:02:41.4]} 19... Kxg7 {[%clk 0:02:11.4]} 20. Nb3 {[%clk 0:02:41.3]} 20... Nb6
{[%clk 0:02:09.8]} 21. Nc5 {[%clk 0:02:41.1]} 21... Qa3 {[%clk 0:02:09.8]} 22.
Qxb5 {[%clk 0:02:37.4]} 22... Nc4 {[%clk 0:02:06.1]} 23. Qd7 {[%clk 0:02:28.3]}
23... Kg8 {[%clk 0:02:01]} 24. h5 {[%clk 0:02:28.5]} 24... a5 {[%clk 0:01:59.9]}
25. h6 {[%clk 0:02:24]} 25... Rfe8 {[%clk 0:01:39.8]} 26. Rxe6 {[%clk
0:02:19.3]} 26... Rf8 {[%clk 0:01:15.6]} 27. Qe7 {[%clk 0:02:14.5]} 1-0

[Event "Late-Titled-Tuesday-Blitz-April-02-2024"]
[Site "Chess.com"]
[Date "2024.04.02"]
[Round "10"]
[White "ChessSwole"]
[Black "Duhless"]
[Result "0-1"]
[WhiteElo "2711"]
[BlackElo "3096"]
[TimeControl "180+1"]
[EndTime "15:49:56 PDT"]
[Termination "Duhless won by resignation"]

1. d4 {[%clk 0:03:00.9]} 1... Nf6 {[%clk 0:02:54.4]} 2. c4 {[%clk 0:03:00.9]}
2... e6 {[%clk 0:02:54.4]} 3. Nf3 {[%clk 0:02:59.4]} 3... a6 {[%clk 0:02:54.8]}
4. g3 {[%clk 0:02:53]} 4... b5 {[%clk 0:02:54.4]} 5. b3 {[%clk 0:02:51.2]} 5...
Bb7 {[%clk 0:02:51]} 6. Bg2 {[%clk 0:02:51.2]} 6... c5 {[%clk 0:02:47]} 7. O-O
{[%clk 0:02:42.3]} 7... cxd4 {[%clk 0:02:45.6]} 8. cxb5 {[%clk 0:02:37.9]} 8...
axb5 {[%clk 0:02:45.2]} 9. Bb2 {[%clk 0:02:36.9]} 9... Be7 {[%clk 0:02:42.8]}
10. Nxd4 {[%clk 0:02:32]} 10... Bxg2 {[%clk 0:02:41.5]} 11. Kxg2 {[%clk
0:02:32.9]} 11... b4 {[%clk 0:02:40.9]} 12. a4 {[%clk 0:02:25.9]} 12... bxa3
{[%clk 0:02:38.9]} 13. Nxa3 {[%clk 0:02:20.6]} 13... O-O {[%clk 0:02:37.1]} 14.
e3 {[%clk 0:02:13.8]} 14... Na6 {[%clk 0:02:11.8]} 15. Nc4 {[%clk 0:02:10.1]}
15... Nb4 {[%clk 0:02:01.6]} 16. Qf3 {[%clk 0:02:07.8]} 16... Qb8 {[%clk
0:01:57]} 17. Rxa8 {[%clk 0:01:53.3]} 17... Qxa8 {[%clk 0:01:56.8]} 18. Qxa8
{[%clk 0:01:54.2]} 18... Rxa8 {[%clk 0:01:56.6]} 19. Ra1 {[%clk 0:01:54.9]}
19... Rb8 {[%clk 0:01:50.9]} 20. Ra7 {[%clk 0:01:48.9]} 20... Bc5 {[%clk
0:01:48]} 21. Rc7 {[%clk 0:01:43.3]} 21... Na6 {[%clk 0:01:47.4]} 0-1

[Event "Late-Titled-Tuesday-Blitz-April-02-2024"]
[Site "Chess.com"]
[Date "2024.04.02"]
[Round "10"]
[White "trriinu"]
[Black "kikoveiga"]
[Result "1-0"]
[WhiteElo "2290"]
[BlackElo "2446"]
[TimeControl "180+1"]
[EndTime "15:50:11 PDT"]
[Termination "trriinu won by resignation"]

1. e4 {[%clk 0:02:59.2]} 1... c5 {[%clk 0:02:59.5]} 2. Nf3 {[%clk 0:02:59.1]}
2... d6 {[%clk 0:03:00]} 3. Bb5+ {[%clk 0:02:59.2]} 3... Bd7 {[%clk 0:02:59.1]}
4. Bxd7+ {[%clk 0:02:59.7]} 4... Qxd7 {[%clk 0:02:59.6]} 5. O-O {[%clk
0:03:00.6]} 5... Nc6 {[%clk 0:02:56.5]} 6. c3 {[%clk 0:03:00.1]} 6... Nf6 {[%clk
0:02:57.1]} 7. Qe2 {[%clk 0:03:00.4]} 7... e6 {[%clk 0:02:55.4]} 8. Rd1 {[%clk
0:03:00.5]} 8... Be7 {[%clk 0:02:53.8]} 9. d4 {[%clk 0:03:01.2]} 9... cxd4
{[%clk 0:02:53.2]} 10. cxd4 {[%clk 0:03:02.1]} 10... d5 {[%clk 0:02:53.6]} 11.
e5 {[%clk 0:03:02.8]} 11... Ne4 {[%clk 0:02:54.2]} 12. Ne1 {[%clk 0:03:03.3]}
12... O-O {[%clk 0:02:41.2]} 13. f3 {[%clk 0:03:03.4]} 13... Ng5 {[%clk
0:02:40.9]} 14. h4 {[%clk 0:03:03.6]} 14... Nxd4 {[%clk 0:02:19.2]} 15. Rxd4
{[%clk 0:02:55.8]} 15... Bc5 {[%clk 0:02:19.2]} 16. Bxg5 {[%clk 0:02:36.8]}
16... Bxd4+ {[%clk 0:02:18.2]} 17. Kh1 {[%clk 0:02:34.2]} 17... f6 {[%clk
0:02:05.8]} 18. exf6 {[%clk 0:02:29.9]} 18... Bxf6 {[%clk 0:02:05.1]} 19. Nd3
{[%clk 0:02:18.5]} 19... Bxg5 {[%clk 0:02:03]} 20. hxg5 {[%clk 0:02:18.7]} 20...
Qf7 {[%clk 0:02:03.2]} 21. f4 {[%clk 0:02:16.5]} 21... Qf5 {[%clk 0:01:59.7]}
22. Nc3 {[%clk 0:02:10.2]} 22... Rac8 {[%clk 0:01:44.9]} 23. Re1 {[%clk
0:02:05.6]} 23... Rfe8 {[%clk 0:01:41.1]} 24. g4 {[%clk 0:01:58.9]} 24... Qg6
{[%clk 0:01:37.8]} 25. Ne5 {[%clk 0:01:54.8]} 25... Rxc3 {[%clk 0:01:21.7]} 26.
Nxg6 {[%clk 0:01:54.5]} 1-0

[Event "Late-Titled-Tuesday-Blitz-April-02-2024"]
[Site "Chess.com"]
[Date "2024.04.02"]
[Round "10"]
[White "dosto07"]
[Black "ellennilssen"]
[Result "1-0"]
[WhiteElo "2477"]
[BlackElo "2341"]
[TimeControl "180+1"]
[EndTime "15:50:16 PDT"]
[Termination "dosto07 won by resignation"]

1. e4 {[%clk 0:03:00.9]} 1... c6 {[%clk 0:02:58.3]} 2. d4 {[%clk 0:02:59.7]}
2... d5 {[%clk 0:02:55.8]} 3. exd5 {[%clk 0:03:00.2]} 3... cxd5 {[%clk
0:02:55.5]} 4. Bd3 {[%clk 0:03:00.7]} 4... Nc6 {[%clk 0:02:55.4]} 5. c3 {[%clk
0:03:00.9]} 5... Qc7 {[%clk 0:02:56]} 6. h3 {[%clk 0:02:59.6]} 6... Nf6 {[%clk
0:02:55]} 7. Nf3 {[%clk 0:02:54.2]} 7... e6 {[%clk 0:02:52.5]} 8. O-O {[%clk
0:02:49.1]} 8... Bd6 {[%clk 0:02:50.7]} 9. Qe2 {[%clk 0:02:48.2]} 9... O-O
{[%clk 0:02:50.8]} 10. Bg5 {[%clk 0:02:48.6]} 10... Ne7 {[%clk 0:02:46.7]} 11.
Bxf6 {[%clk 0:02:46.8]} 11... gxf6 {[%clk 0:02:47.6]} 12. Nbd2 {[%clk
0:02:46.8]} 12... Ng6 {[%clk 0:02:46.6]} 13. g3 {[%clk 0:02:42.2]} 13... Kh8
{[%clk 0:02:40.1]} 14. c4 {[%clk 0:02:39.7]} 14... dxc4 {[%clk 0:02:38.2]} 15.
Nxc4 {[%clk 0:02:39.8]} 15... Be7 {[%clk 0:02:35.3]} 16. Rac1 {[%clk 0:02:37.4]}
16... Qd7 {[%clk 0:02:34]} 17. Rfd1 {[%clk 0:02:33.5]} 17... b6 {[%clk
0:02:26.4]} 18. Be4 {[%clk 0:02:33.1]} 18... Rb8 {[%clk 0:02:23.3]} 19. d5
{[%clk 0:02:32.7]} 19... f5 {[%clk 0:02:18.3]} 20. Nce5 {[%clk 0:02:14.9]} 20...
Qe8 {[%clk 0:02:03.1]} 21. Bd3 {[%clk 0:02:04.9]} 21... Bc5 {[%clk 0:01:52.1]}
22. Bb5 {[%clk 0:01:55.5]} 22... Qd8 {[%clk 0:01:38.5]} 23. b4 {[%clk
0:01:51.1]} 23... Nxe5 {[%clk 0:01:23.9]} 24. Qxe5+ {[%clk 0:01:46.7]} 24... f6
{[%clk 0:01:21.8]} 25. Qxb8 {[%clk 0:01:44.9]} 25... Bxb4 {[%clk 0:01:18.6]} 26.
dxe6 {[%clk 0:01:39.3]} 1-0

[Event "Late-Titled-Tuesday-Blitz-April-02-2024"]
[Site "Chess.com"]
[Date "2024.04.02"]
[Round "10"]
[White "manitodeplomo"]
[Black "Rodalquilar"]
[Result "0-1"]
[WhiteElo "2628"]
[BlackElo "2747"]
[TimeControl "180+1"]
[EndTime "15:50:24 PDT"]
[Termination "Rodalquilar won by resignation"]

1. d4 {[%clk 0:02:47.5]} 1... d5 {[%clk 0:03:00.4]} 2. c4 {[%clk 0:02:45.3]}
2... e6 {[%clk 0:03:00.5]} 3. Nf3 {[%clk 0:02:44.8]} 3... Nf6 {[%clk 0:03:00.2]}
4. Nc3 {[%clk 0:02:41.6]} 4... a6 {[%clk 0:02:59.7]} 5. e3 {[%clk 0:02:38.8]}
5... b6 {[%clk 0:02:59.1]} 6. Bd2 {[%clk 0:02:37.1]} 6... Bb7 {[%clk 0:02:58.5]}
7. Rc1 {[%clk 0:02:27.3]} 7... Nbd7 {[%clk 0:02:57.6]} 8. Be2 {[%clk 0:02:14.3]}
8... dxc4 {[%clk 0:02:57.3]} 9. Bxc4 {[%clk 0:02:14.6]} 9... Bd6 {[%clk
0:02:57.7]} 10. a4 {[%clk 0:02:12.4]} 10... O-O {[%clk 0:02:57.6]} 11. O-O
{[%clk 0:02:12.8]} 11... Qe7 {[%clk 0:02:57.8]} 12. Qe2 {[%clk 0:02:10.5]} 12...
e5 {[%clk 0:02:57.7]} 13. Rfd1 {[%clk 0:02:00.3]} 13... Rfe8 {[%clk 0:02:54.2]}
14. Be1 {[%clk 0:01:59]} 14... h6 {[%clk 0:02:51.1]} 15. h3 {[%clk 0:01:57.5]}
15... exd4 {[%clk 0:02:45.7]} 16. Nxd4 {[%clk 0:01:53.3]} 16... Qe5 {[%clk
0:02:43.9]} 17. f4 {[%clk 0:01:27.9]} 17... Qxe3+ {[%clk 0:02:44]} 18. Qxe3
{[%clk 0:01:27.3]} 18... Rxe3 {[%clk 0:02:44.9]} 19. Nf5 {[%clk 0:01:25.3]}
19... Bxf4 {[%clk 0:02:44.8]} 20. Bd2 {[%clk 0:01:16]} 20... Re5 {[%clk
0:02:28.5]} 21. Bxf4 {[%clk 0:01:15.3]} 21... Rxf5 {[%clk 0:02:29]} 22. Bxc7
{[%clk 0:01:15.8]} 22... Rc5 {[%clk 0:02:29.1]} 23. Ne2 {[%clk 0:00:32.4]} 23...
Rc8 {[%clk 0:02:28.9]} 0-1